fUSD/lending_fUSD_20250223
["ID","MTS","AMOUNT","RATE_DAILY","PERIOD"]
[354223175,1740352254426,-1007.45,0.00016684,2]
[354223176,1740352254439,-1024.47,0.00016684,2]
[354223177,1740352254448,-1546.7,0.00016684,2]
[354223178,1740352254458,-1380.08,0.00016684,2]
[354223179,1740352254468,-1392.82,0.00016684,2]
[354223180,1740352254479,-1418.33,0.00016684,2]
[354223181,1740352254488,-500.0,0.00016684,2]
[354223182,1740352254499,-1473.44,0.00016684,2]
[354223183,1740352254508,-1042.13,0.00016684,2]
[354223184,1740352254517,-500.0,0.00016684,2]
[354223185,1740352254527,-500.0,0.00016684,2]
[354223186,1740352254536,-500.0,0.00016684,2]
[354223187,1740352254545,-1455.44,0.00016684,2]
[354223188,1740352254554,-1066.47,0.00016684,2]
[354223189,1740352254564,-1368.36,0.00016684,2]
[354223190,1740352254573,-500.0,0.00016684,2]
[354223191,1740352254583,-632.65,0.00016684,2]
[354223192,1740352254592,-500.0,0.00016684,2]
[354223193,1740352254601,-1014.8,0.00016684,2]
[354223194,1740352254611,-505.39,0.00016684,2]
[354223195,1740352254620,-1108.04,0.00016684,2]
[354223196,1740352254629,-500.0,0.00016684,2]
[354223197,1740352254638,-500.95,0.00016684,2]
[354223198,1740352254648,-728.91,0.00016684,2]
[354223199,1740352254657,-500.0,0.00016684,2]
[354223200,1740352254666,-1438.01,0.00016684,2]
[354223201,1740352254675,-1771.05,0.00016684,2]
[354223202,1740352254685,-500.0,0.00016684,2]
[354223203,1740352254693,-961.5,0.00016684,2]
[354223204,1740352254703,-558.2,0.00016684,2]
[354223205,1740352254711,-461.83049187,0.00016684,2]
[354223206,1740352254721,-500.0,0.00016684,2]
[354223207,1740352254731,-500.0,0.00016684,2]
[354223208,1740352254741,-1006.24,0.00016684,2]
[354223209,1740352254750,-500.0,0.00016684,2]
[354223210,1740352254759,-602.93,0.00016684,2]
[354223211,1740352254768,-500.0,0.00016684,2]
[354223212,1740352254778,-500.0,0.00016684,2]
[354223213,1740352254788,-500.0,0.00016684,2]
[354223214,1740352254797,-500.0,0.00016684,2]
[354223215,1740352254806,-500.0,0.00016684,2]
[354223216,1740352254816,-1173.51,0.00016684,2]
[354223217,1740352254826,-500.0,0.00016684,2]
[354223218,1740352254836,-500.0,0.00016684,2]
[354223219,1740352254845,-1934.16,0.00016684,2]
[354223220,1740352254854,-1088.29,0.00016684,2]
[354223221,1740352254863,-1140.14,0.00016684,2]
[354223222,1740352254873,-500.0,0.00016684,2]
[354223223,1740352254882,-714.76,0.00016684,2]
[354223224,1740352254891,-888.13,0.00016684,2]
[354223225,1740352254900,-662.54,0.00016684,2]
[354223226,1740352254909,-500.0,0.00016684,2]
[354223227,1740352254918,-500.0,0.00016684,2]
[354223228,1740352254928,-500.0,0.00016684,2]
[354223229,1740352254938,-1209.93,0.00016684,2]
[354223230,1740352254948,-500.0,0.00016684,2]
[354223231,1740352254957,-887.25,0.00016684,2]
[354223232,1740352254967,-635.07,0.00016684,2]
[354223233,1740352254977,-500.0,0.00016684,2]
[354223234,1740352254987,-906.08,0.00016684,2]
[354223235,1740352254996,-500.0,0.00016684,2]
[354223236,1740352255006,-500.0,0.00016684,2]
[354223237,1740352255015,-1368.52,0.00016684,2]
[354223238,1740352255024,-500.0,0.00016684,2]
[354223239,1740352255034,-544.66,0.00016684,2]
[354223240,1740352255043,-239.48376584,0.00016684,2]
[354223241,1740352255053,-790.31,0.00016684,2]
[354223242,1740352255062,-1058.64,0.00016684,2]
[354223243,1740352255071,-1175.32,0.00016684,2]
[354223244,1740352255081,-897.85,0.00016684,2]
[354223245,1740352255090,-500.0,0.00016684,2]
[354223246,1740352255099,-500.0,0.00016684,2]
[354223247,1740352255109,-500.0,0.00016684,2]
[354223248,1740352255118,-500.0,0.00016684,2]
[354223249,1740352255127,-1230.76,0.00016684,2]
[354223250,1740352255137,-1372.08,0.00016684,2]
[354223251,1740352255146,-500.0,0.00016684,2]
[354223252,1740352255155,-958.26,0.00016684,2]
[354223253,1740352255165,-500.0,0.00016684,2]
[354223254,1740352255174,-1133.7,0.00016684,2]
[354223255,1740352255184,-547.77,0.00016684,2]
[354223256,1740352255193,-816.84,0.00016684,2]
[354223257,1740352255203,-821.79,0.00016684,2]
[354223258,1740352255212,-500.0,0.00016684,2]
[354223259,1740352255221,-500.0,0.00016684,2]
[354223260,1740352255232,-500.0,0.00016684,2]
[354223261,1740352255241,-500.0,0.00016684,2]
[354223262,1740352255251,-500.0,0.00016684,2]
[354223263,1740352255260,-1028.74,0.00016684,2]
[354223264,1740352255269,-959.94,0.00016684,2]
[354223265,1740352255279,-1776.38,0.00016684,2]
[354223266,1740352255288,-1447.83,0.00016684,2]
[354223267,1740352255299,-500.0,0.00016684,2]
[354223268,1740352255308,-500.0,0.00016684,2]
[354223269,1740352255318,-500.0,0.00016684,2]
[354223270,1740352255327,-751.84,0.00016684,2]
[354223271,1740352255336,-761.16,0.00016684,2]
[354223272,1740352255345,-500.0,0.00016684,2]
[354223273,1740352255354,-813.26,0.00016684,2]
[354223274,1740352255364,-1058.56,0.00016684,2]
[354223275,1740352255374,-815.73,0.00016684,2]
[354223276,1740352255385,-500.0,0.00016684,2]
[354223277,1740352255394,-500.0,0.00016684,2]
[354223278,1740352255403,-696.88,0.00016684,2]
[354223279,1740352255412,-527.2,0.00016684,2]
[354223280,1740352255422,-910.19,0.00016684,2]
[354223281,1740352255432,-1913.05,0.00016684,2]
[354223282,1740352255441,-669.04,0.00016684,2]
[354223283,1740352255451,-1110.92,0.00016684,2]
[354223284,1740352255460,-1183.22,0.00016684,2]
[354223285,1740352255469,-500.0,0.00016684,2]
[354223286,1740352255479,-500.0,0.00016684,2]
[354223287,1740352255488,-500.0,0.00016684,2]
[354223288,1740352255497,-500.0,0.00016684,2]
[354223289,1740352255506,-500.0,0.00016684,2]
[354223290,1740352255516,-1240.78,0.00016684,2]
[354223291,1740352255525,-879.3,0.00016684,2]
[354223292,1740352255535,-500.0,0.00016684,2]
[354223293,1740352255545,-1767.26,0.00016684,2]
[354223294,1740352255555,-967.57,0.00016684,2]
[354223295,1740352255564,-1994.53,0.00016684,2]
[354223296,1740352255573,-500.0,0.00016684,2]
[354223297,1740352255583,-1000.31,0.00016684,2]
[354223298,1740352255592,-875.12,0.00016684,2]
[354223299,1740352255601,-908.59,0.00016684,2]
[354223300,1740352255611,-500.0,0.00016684,2]
[354223301,1740352255620,-702.63,0.00016684,2]
[354223302,1740352255630,-777.1,0.00016684,2]
[354223303,1740352255639,-500.0,0.00016684,2]
[354223304,1740352255648,-190.949618,0.00016684,2]
[354223305,1740352255658,-500.0,0.00016684,2]
[354223306,1740352255667,-1364.58,0.00016684,2]
[354223307,1740352255676,-956.09,0.00016684,2]
[354223308,1740352255686,-500.0,0.00016684,2]
[354223309,1740352255695,-500.0,0.00016684,2]
[354223310,1740352255704,-985.86,0.00016684,2]
[354223311,1740352255713,-533.65,0.00016684,2]
[354223312,1740352255722,-500.0,0.00016684,2]
[354223313,1740352255732,-518.47,0.00016684,2]
[354223314,1740352255741,-1144.86,0.00016684,2]
[354223315,1740352255750,-500.0,0.00016684,2]
[354223316,1740352255760,-526.47,0.00016684,2]
[354223317,1740352255769,-250.298795,0.00016684,2]
[354223318,1740352255778,-1709.74,0.00016684,2]
[354223319,1740352255787,-433.7195577,0.00016684,2]
[354223320,1740352255796,-769.14,0.00016684,2]
[354223321,1740352255806,-500.0,0.00016684,2]
[354223322,1740352255815,-864.95,0.00016684,2]
[354223323,1740352255824,-500.0,0.00016684,2]
[354223324,1740352255833,-1867.05,0.00016684,2]
[354223325,1740352255843,-500.0,0.00016684,2]
[354223326,1740352255852,-500.0,0.00016684,2]
[354223327,1740352255861,-974.3,0.00016684,2]
[354223328,1740352255870,-613.44,0.00016684,2]
[354223329,1740352255880,-923.63,0.00016684,2]
[354223330,1740352255890,-815.98,0.00016684,2]
[354223331,1740352255899,-500.0,0.00016684,2]
[354223332,1740352255908,-665.57,0.00016684,2]
[354223333,1740352255918,-500.0,0.00016684,2]
[354223334,1740352255927,-500.0,0.00016684,2]
[354223335,1740352255937,-1761.7,0.00016684,2]
[354223336,1740352255946,-3.46954665,0.00016684,2]
[354223337,1740352255966,-496.53045335,0.00016684,2]
[354223338,1740352255975,-620.02,0.00016684,2]
[354223339,1740352255985,-258.00454725,0.00016684,2]
[354223340,1740352255996,-1302.98545275,0.00016684,2]
[354223341,1740352256005,-1356.13,0.00016684,2]
[354223342,1740352256015,-500.0,0.00016684,2]
[354223343,1740352256025,-500.0,0.00016684,2]
[354223344,1740352256035,-817.19,0.00016684,2]
[354223345,1740352256044,-500.0,0.00016684,2]
[354223346,1740352256054,-500.0,0.00016684,2]
[354223347,1740352256064,-492.55874871,0.00016684,2]
[354223348,1740352256075,-1057.35125129,0.00016684,2]
[354223349,1740352256085,-605.30440056,0.00016684,2]
[354223350,1740352256094,-1001.47,0.00016684,2]
[354223351,1740352256103,-359.88327279,0.00016684,2]
[354223352,1740352256115,-140.11672721,0.00016684,2]
[354223353,1740352256174,-500.0,0.00016684,2]
[354223354,1740352256184,-500.0,0.00016684,2]
[354223355,1740352256193,-2324.01,0.00016684,2]
[354223356,1740352256202,-500.0,0.00016684,2]
[354223357,1740352256211,-500.0,0.00016684,2]
[354223358,1740352256221,-500.0,0.00016684,2]
[354223359,1740352256231,-500.0,0.00016684,2]
[354223360,1740352256241,-511.66,0.00016684,2]
[354223361,1740352256250,-500.0,0.00016684,2]
[354223362,1740352256259,-1794.41,0.00016684,2]
[354223363,1740352256269,-500.0,0.00016684,2]
[354223364,1740352256278,-1129.65,0.00016684,2]
[354223365,1740352256287,-500.0,0.00016684,2]
[354223366,1740352256297,-500.0,0.00016684,2]
[354223367,1740352256306,-500.0,0.00016684,2]
[354223368,1740352256315,-500.0,0.00016684,2]
[354223369,1740352256325,-500.0,0.00016684,2]
[354223370,1740352256334,-625.01,0.00016684,2]
[354223371,1740352256343,-235.14327279,0.00016684,2]
[354223372,1740352256650,-264.85672721,0.00016684,2]
[354223373,1740352256660,-424.46695466,0.00016684,2]
[354223374,1740352256671,-75.53304534,0.00016684,2]
[354223375,1740352256680,-500.0,0.00016684,2]
[354223376,1740352256690,-500.0,0.00016684,2]
[354223377,1740352256699,-486.23968273,0.00016684,2]
[354223378,1740352256710,-13.76031727,0.00016684,2]
[354223379,1740352256719,-500.0,0.00016684,2]
[354223380,1740352256729,-1397.93,0.00016684,2]
[354223381,1740352256738,-500.0,0.00016684,2]
[354223382,1740352256747,-546.2,0.00016684,2]
[354223383,1740352256757,-284.07557983,0.00016684,2]
[354223384,1740352256770,-215.92442017,0.00016684,2]
[354223385,1740352256779,-764.28756212,0.00016684,2]
[354223386,1740352256791,-217.60243788,0.00016684,2]
[354223387,1740352256800,-805.33,0.00016684,2]
[354223388,1740352256810,-436.50756212,0.00016684,2]
[354223389,1740352256821,-86.58243788,0.00016684,2]
[354223390,1740352256830,-500.0,0.00016684,2]
[354223391,1740352256839,-506.5,0.00016684,2]
[354223392,1740352256848,-500.0,0.00016684,2]
[354223393,1740352256858,-500.0,0.00016684,2]
[354223394,1740352256867,-500.0,0.00016684,2]
[354223395,1740352256877,-1134.74,0.00016684,2]
[354223396,1740352256886,-500.0,0.00016684,2]
[354223397,1740352256896,-500.0,0.00016684,2]
[354223398,1740352256906,-500.0,0.00016684,2]
[354223399,1740352256915,-500.0,0.00016684,2]
[354223400,1740352256924,-883.27,0.00016684,2]
[354223401,1740352256933,-1106.94,0.00016684,2]
[354223402,1740352256942,-155.97966514,0.00016684,2]
[354223403,1740352256951,-1128.08,0.00016684,2]
[354223404,1740352256961,-500.0,0.00016684,2]
[354223405,1740352256970,-500.0,0.00016684,2]
[354223406,1740352256980,-364.5,0.00016684,2]
[354223407,1740352256990,-500.0,0.00016684,2]
[354223408,1740352256999,-634.06,0.00016684,2]
[354223409,1740352257009,-500.0,0.00016684,2]
[354223410,1740352257019,-220.37755949,0.00016684,2]
[354223411,1740352257031,-442.49244051,0.00016684,2]
[354223412,1740352257041,-482.60755949,0.00016684,2]
[354223413,1740352257052,-354.56244051,0.00016684,2]
[354223414,1740352257061,-500.0,0.00016684,2]
[354223415,1740352257071,-500.0,0.00016684,2]
[354223416,1740352257080,-597.91,0.00016684,2]
[354223417,1740352257089,-500.0,0.00016684,2]
[354223418,1740352257098,-500.0,0.00016684,2]
[354223419,1740352257107,-832.13,0.00016684,2]
[354223420,1740352257116,-500.0,0.00016684,2]
[354223421,1740352257126,-500.0,0.00016684,2]
[354223422,1740352257135,-500.0,0.00016684,2]
[354223423,1740352257144,-672.29,0.00016684,2]
[354223424,1740352257154,-2067.35,0.00016684,2]
[354223425,1740352257163,-500.0,0.00016684,2]
[354223426,1740352257172,-1586.18,0.00016684,2]
[354223427,1740352257182,-500.0,0.00016684,2]
[354223428,1740352257191,-500.0,0.00016684,2]
[354223429,1740352257200,-892.37,0.00016684,2]
[354223430,1740352257210,-921.94,0.00016684,2]
[354223431,1740352257219,-500.0,0.00016684,2]
[354223432,1740352257230,-510.83,0.00016684,2]
[354223433,1740352257239,-500.0,0.00016684,2]
[354223434,1740352257248,-1032.21,0.00016684,2]
[354223435,1740352257257,-344.66371754,0.00016684,2]
[354223436,1740352257266,-1265.76,0.00016684,2]
[354223437,1740352257276,-1084.13,0.00016684,2]
[354223438,1740352257285,-151.0,0.00016684,2]
[354223439,1740352257294,-1186.12,0.00016684,2]
[354223440,1740352257303,-500.0,0.00016684,2]
[354223441,1740352257312,-500.0,0.00016684,2]
[354223442,1740352257321,-979.89232634,0.00016684,2]
[354223443,1740352257333,-2207.04767366,0.00016684,2]
[354223444,1740352257342,-1768.88,0.00016684,2]
[354223445,1740352257352,-552.85,0.00016684,2]
[354223446,1740352257363,-526.32752915,0.00016684,2]
[354223447,1740352257374,-500.0,0.00016684,2]
[354223448,1740352257386,-500.0,0.00016684,2]
[354223449,1740352257395,-862.45,0.00016684,2]
[354223450,1740352257405,-665.11,0.00016684,2]
[354223451,1740352257416,-500.0,0.00016684,2]
[354223452,1740352257427,-5068.12,0.00016684,2]
[354223453,1740352257436,-1177.98,0.00016684,2]
[354223454,1740352257446,-2475.28,0.00016684,2]
[354223455,1740352257458,-3734.72,0.00016684,2]
[354223456,1740352257468,-889.89,0.00016684,2]
[354223457,1740352257477,-2588.08,0.00016684,2]
[354223458,1740352257489,-2533.98,0.00016684,2]
[354223459,1740352257498,-924.34,0.00016684,2]
[354223460,1740352257507,-500.0,0.00016684,2]
[354223461,1740352257516,-781.8,0.00016684,2]
[354223462,1740352257526,-500.0,0.00016684,2]
[354223463,1740352257535,-1166.1,0.00016684,2]
[354223464,1740352257545,-4285.85,0.00016684,2]
[354223465,1740352257553,-500.0,0.00016684,2]
[354223466,1740352257563,-2462.41,0.00016684,2]
[354223467,1740352257573,-4568.6,0.00016684,2]
[354223468,1740352257582,-500.0,0.00016684,2]
[354223469,1740352257592,-1696.89,0.00016684,2]
[354223470,1740352257601,-500.0,0.00016684,2]
[354223471,1740352257610,-926.06,0.00016684,2]
[354223472,1740352257620,-1964.03,0.00016684,2]
[354223473,1740352257629,-500.0,0.00016684,2]
[354223474,1740352257638,-340.31822421,0.00016684,2]
[354223475,1740352257651,-449.500001,0.00016684,2]
[354223476,1740352257662,-736.57390145,0.00016684,2]
[354223477,1740352257674,-752.42787334,0.00016684,2]
[354223478,1740352257683,-274.50148498,0.00016684,2]
[354223479,1740352257694,-400.97885,0.00016684,2]
[354223480,1740352257708,-9.55966502,0.00016684,2]
[354223481,1740352257717,-471.33150998,0.00016684,2]
[354223482,1740352257730,-28.66849002,0.00016684,2]
[354223483,1740352257739,-500.02546829,0.00016684,2]
[354223484,1740352257750,-859.54031443,0.00016684,2]
[354223485,1740352258029,-631.13,0.00016438,2]
[354223486,1740352258039,-463.21048187,0.00016438,2]
[354223487,1740352258050,-36.78951813,0.00016438,2]
[354223488,1740352258059,-631.13,0.0001652,2]
[354223489,1740352258069,-631.13,0.00016602,2]
[354223490,1740352258078,-1380.73402087,0.00016684,2]
[354223491,1740352258091,-481.075,0.00016684,2]
[354223492,1740352258158,-500.0,0.0001652,2]
[354223493,1740352258167,-529.19519641,0.00016684,2]
[354223494,1740352258177,-3546.41,0.00016684,2]
[354223495,1740352258186,-775.21,0.00016684,2]
[354223496,1740352258195,-1789.28286351,0.00016684,2]
[354223497,1740352258522,-587.52026803,0.00014671,2]
[354223498,1740352258532,-500.0,0.00016438,2]
[354223499,1740352258543,-404.66644645,0.00016438,2]
[354223500,1740352258552,-428.13328552,0.00016438,2]
[354223501,1740352258563,-71.86671448,0.00016438,2]
[354223502,1740352258572,-158.2725512,0.00016507,2]
[354223503,1740352258581,-500.0,0.0001652,2]
[354223504,1740352258590,-75.61460805,0.00016602,2]
[354223505,1740352259120,-500.0,0.00016438,2]
[354223506,1740352259130,-164.35956001,0.00016438,2]
[354223507,1740352259236,-276.92773726,0.00016438,2]
[354223508,1740352259247,-58.71270273,0.00016438,2]
[354223509,1740352259257,-500.0,0.00016438,2]
[354223510,1740352259266,-500.0,0.00016438,2]
[354223511,1740352259275,-500.0,0.0001652,2]
[354223512,1740352259285,-500.0,0.0001652,2]
[354223513,1740352259294,-500.0,0.0001652,2]
[354223514,1740352259303,-500.0,0.0001652,2]
[354223515,1740352259312,-500.0,0.0001652,2]
[354223516,1740352259321,-44.98646633,0.00016531,2]
[354223518,1740352934213,149642.08682822,0.000172,120]
[354223521,1740353173316,500.0,0.00016438,60]
[354223546,1740353431636,-205.0,9.8e-05,2]
[354223547,1740353431645,-794.06291161,9.828e-05,2]
[354223549,1740353431655,-338.99302185,9.828e-05,2]
[354223550,1740353431663,-50.54562893,9.9e-05,2]
[354223551,1740353431677,-1710.68,9.9e-05,2]
[354223552,1740353431687,-3555.03635143,9.9e-05,2]
[354223553,1740353431698,-927.61514,9.9e-05,2]
[354223554,1740353431808,-943.7974135,9.9e-05,2]
[354223555,1740353431818,-7042.91991193,9.9e-05,2]
[354223556,1740353431829,-702.4200792,9.9e-05,2]
[354223557,1740353431841,-365.19994533,9.9e-05,2]
[354223558,1740353431852,-340.97585375,9.9e-05,2]
[354223559,1740353431873,-5316.28285092,9.9e-05,2]
[354223560,1740353431882,-150.0,9.999e-05,2]
[354223561,1740353431891,-456.172985,0.0001,2]
[354223562,1740353431900,-6683.38696641,0.0001,2]
[354223563,1740353431911,-43754.10983937,0.0001,2]
[354223564,1740353431922,-833.12760124,0.0001,2]
[354223565,1740353431949,-1456.56667831,0.0001,2]
[354223566,1740353431960,-994.8,0.0001,2]
[354223567,1740353431979,-3475.27042336,0.0001,2]
[354223568,1740353431990,-9152.19733159,0.0001,2]
[354223569,1740353432007,-295.44814184,0.0001,2]
[354223575,1740353432116,-262.18282224,0.0001,2]
[354223577,1740353432128,-34166.00134085,0.0001,2]
[354223579,1740353432137,-587.52026803,0.0001,2]
[354223581,1740353432146,-716.57985968,0.0001,2]
[354223583,1740353432158,-27158.0230251,0.0001,2]
[354223586,1740353432169,-35651.14840467,0.0001,2]
[354223588,1740353432181,-2727.3619961,0.0001,2]
[354223900,1740353437529,-500.0,0.0001,2]
[354223904,1740353437540,-478.505,0.0001,2]
[354223910,1740353437568,-12966.08573098,0.0001,2]
[354223912,1740353437579,-358.33485164,0.0001,2]
[354223913,1740353437590,-25487.25,0.0001,2]
[354223916,1740353437601,-10056.12500296,0.0001,2]
[354223918,1740353437613,-778.62254824,0.0001,2]
[354223921,1740353437702,-2383.25929092,0.0001,2]
[354223922,1740353437714,-968.68525429,0.0001,2]
[354223923,1740353437726,-498.014838,0.0001,2]
[354223924,1740353437745,-3519.39994626,0.0001,2]
[354223925,1740353437756,-1723.45869062,0.0001,2]
[354223926,1740353437769,-983.76745006,0.0001,2]
[354223927,1740353437796,-1484.39999997,0.0001,2]
[354223928,1740353437807,-22948.86088636,0.0001,2]
[354223929,1740353437817,-157.85787372,0.0001,2]
[354223930,1740353437826,-500.0,0.0001,2]
[354223931,1740353437836,-1000.0,0.00010548,2]
[354223932,1740353437845,-150.0,0.0001078,2]
[354223933,1740353437855,-500.0,0.0001078,2]
[354223934,1740353437864,-150.0,0.0001078,2]
[354223935,1740353437874,-249.017467,0.00010958,2]
[354223936,1740353437883,-347.2944,0.00010958,2]
[354223937,1740353437893,-255.0,0.00010999,2]
[354223938,1740353437903,-150.0,0.00011,2]
[354223939,1740353437912,-249.017467,0.00011041,2]
[354223941,1740353437921,-347.2944,0.00011041,2]
[354223943,1740353437930,-249.017467,0.00011123,2]
[354223945,1740353437939,-347.2944,0.00011123,2]
[354223947,1740353437948,-249.017467,0.00011205,2]
[354223948,1740353437958,-347.2944,0.00011205,2]
[354223950,1740353437967,-163.75,0.00011218,2]
[354223952,1740353437980,-249.017467,0.00011287,2]
[354223954,1740353437990,-347.2944,0.00011287,2]
[354223956,1740353437999,-249.017467,0.00011369,2]
[354223958,1740353438009,-347.2944,0.00011369,2]
[354223960,1740353438019,-1624.69285273,0.0001155,2]
[354223962,1740353438028,-867.96,0.00011837,2]
[354223964,1740353438037,-433.0,0.00012099,2]
[354223966,1740353438047,-294.91382568,0.000125,2]
[354223968,1740353438057,-150.0,0.00012841,2]
[354223970,1740353438068,-500.0,0.00012986,2]
[354223972,1740353438078,-2442.08683779,0.00013,2]
[354223975,1740353438087,-550.0,0.00013,2]
[354223977,1740353438096,-3218.72,0.00013293,2]
[354223980,1740353438105,-150.0,0.00013309,2]
[354223983,1740353438115,-150.0,0.00013359,2]
[354223986,1740353438124,-150.0,0.00013534,2]
[354223989,1740353438134,-1852.42,0.00013618,2]
[354223992,1740353438143,-296.44,0.000137,2]
[354223995,1740353438152,-1348.02,0.00013854,2]
[354223998,1740353438161,-2000.0,0.00013871,2]
[354224000,1740353438170,-1250.0,0.00014,4]
[354224002,1740353438179,-3983.16,0.00014069,2]
[354224004,1740353438188,-867.96,0.00014101,2]
[354224006,1740353438198,-300.0,0.00014118,2]
[354224008,1740353438207,-9453.65,0.000143,2]
[354224010,1740353438216,-1500.0,0.0001436,2]
[354224012,1740353438225,-244.07,0.00014437,2]
[354224014,1740353438234,-920.03,0.00014487,2]
[354224016,1740353438243,-250.0,0.00014595,2]
[354224018,1740353438252,-179.27,0.000146,2]
[354224020,1740353438262,-2000.0,0.00014679,2]
[354224022,1740353438271,-204.48,0.00014729,2]
[354224024,1740353438280,-1000.0,0.00014739,2]
[354224026,1740353438290,-2500.0,0.00014811,2]
[354224028,1740353438299,-2500.0,0.00014811,2]
[354224030,1740353438308,-7164.06,0.00014828,2]
[354224032,1740353438317,-1000.0,0.0001489,2]
[354224034,1740353438326,-600.0,0.00015,2]
[354224036,1740353438336,-150.0,0.0001514,2]
[354224038,1740353438346,-150.0,0.0001514,2]
[354224040,1740353438355,-150.0,0.0001514,2]
[354224042,1740353438365,-150.0,0.0001514,2]
[354224044,1740353438374,-168.49,0.00015215,2]
[354224046,1740353438383,-162.66,0.00015216,2]
[354224048,1740353438393,-534.94,0.00015218,2]
[354224050,1740353438403,-150.0,0.00015308,2]
[354224051,1740353438412,-609.28,0.00015337,2]
[354224054,1740353438422,-500.0,0.00015394,2]
[354224055,1740353438431,-1000.0,0.00015404,2]
[354224057,1740353438440,-538.56537485,0.00015461,2]
[354224059,1740353438450,-150.0,0.00015476,2]
[354224061,1740353438460,-150.0,0.00015476,2]
[354224063,1740353438470,-1000.0,0.00015531,2]
[354224065,1740353438480,-150.0,0.0001556,2]
[354224067,1740353438489,-200.0,0.00015596,2]
[354224069,1740353438498,-150.0,0.00015632,2]
[354224071,1740353438508,-150.0,0.00015644,2]
[354224073,1740353438518,-150.0,0.00015813,2]
[354224075,1740353438527,-150.0,0.00015813,2]
[354224077,1740353438537,-150.0,0.00015837,2]
[354224079,1740353438546,-150.0,0.00015878,2]
[354224087,1740353438609,-150.0,0.00015888,2]
[354224089,1740353438618,-400.0,0.0001589,2]
[354224091,1740353438627,-150.0,0.00015891,2]
[354224093,1740353438636,-1000.0,0.00015899,2]
[354224095,1740353438645,-1500.0,0.000159,2]
[354224097,1740353438654,-1000.0,0.000159,2]
[354224099,1740353438663,-559.536,0.000159,2]
[354224101,1740353438672,-2566.70744048,0.000159,2]
[354224102,1740353438681,-317.01289798,0.000159,2]
[354224104,1740353438691,-150.0,0.00015903,2]
[354224106,1740353438700,-150.0,0.00015937,2]
[354224108,1740353438709,-150.0,0.00015981,2]
[354224110,1740353438718,-150.0,0.00015981,2]
[354224112,1740353438727,-150.0,0.00015981,2]
[354224114,1740353438737,-1000.0,0.00015985,2]
[354224116,1740353438746,-37350.3216493,0.00016,2]
[354224119,1740353438758,-2040.56228221,0.00016,2]
[354224121,1740353438770,-7938.6552032,0.00016,2]
[354224123,1740353438781,-26492.77405302,0.00016,2]
[354224226,1740353439789,-150.0,0.00015734,2]
[354224228,1740353439798,-4661.85318188,0.00016,2]
[354224243,1740353439935,-32511.29807476,0.00016,2]
[354224245,1740353439945,-7267.49999996,0.00016,2]
[354224247,1740353439954,-1250.0,0.00016,6]
[354224249,1740353439963,-83891.73799169,0.00016,2]
[354224251,1740353439977,-2718.71614646,0.00016,2]
[354224253,1740353439986,-564.06429966,0.00016,2]
[354224255,1740353439996,-2566.7074404,0.00016022,2]
[354224257,1740353440005,-150.0,0.00016041,2]
[354224259,1740353440016,-278.16,0.00016055,2]
[354224261,1740353440026,-150.0,0.00016088,2]
[354224263,1740353440035,-150.0,0.00016103,2]
[354224265,1740353440045,-150.0,0.00016111,2]